Workbook

Sheet Algalapio įvestis
B1: ALGALAPIO SKAIČIUOTUVAS | K1: LAIKOTARPIO PABAIGA: | L1: 2013-04-08 | N1: ĮMONĖS PAVADINIMAS: | P1: „NUOTYKIAI VISIEMS“
B3: ID1 | C3: Darbuotojo vardas | D3: Įpr. dirbtų valandų sk. | E3: Atostogų valandos | F3: Ligos valandos | G3: Viršvalandžių valandos | H3: Viršvalandžių koeficientas | I3: Bendras užmokestis | J3: Mokes. ir atskait. | K3: Kiti atskait. | L3: Galutinis užmokestis | N3: Valandinis darbo užmokestis | O3: Mokesčio būsena | P3: Valstybinė priem. | Q3: Valstybinis mokestis | R3: Valstybinis pajamų mokestis | S3: Soc. draudimo mokestis | T3: Sveikatos apsaugos mokestis | U3: Iš viso išskaičiuota mokesčių | V3: Draudimo atskaitymas | W3: Kitas reg. atskaitymas | X3: Iš viso reg. atskaitymų
B4: 1001 | C4: Juozas Budrys | D4: 50 | E4: 5 | F4: 1 | I4: =SUM(Darbuotojai[[#This Row],[Įpr. dirbtų valandų sk.]:[Ligos valandos]])*Darbuotojai[[#This Row],[Valandinis darbo užmokestis]]+Darbuotojai[[#This Row],[Viršvalandžių valandos]]*Darbuotojai[[#This Row],[Viršvalandžių koeficientas]] -> 560 | J4: =Darbuotojai[[#This Row],[Bendras užmokestis]]*Darbuotojai[[#This Row],[Iš viso išskaičiuota mokesčių]] + Darbuotojai[[#This Row],[Iš viso reg. atskaitymų]] -> 273.08 | K4: 20 | L4: =Darbuotojai[[#This Row],[Bendras užmokestis]]-Darbuotojai[[#This Row],[Mokes. ir atskait.]]-Darbuotojai[[#This Row],[Kiti atskait.]] -> 266.92 | N4: 10 | O4: 1 | P4: 4 | Q4: 0.023 | R4: 0.28 | S4: 0.063 | T4: 0.0145 | U4: =SUM(Darbuotojai[[#This Row],[Valstybinis mokestis]:[Sveikatos apsaugos mokestis]]) -> 0.3805 | V4: 20 | W4: 40 | X4: =SUM(Darbuotojai[[#This Row],[Draudimo atskaitymas]:[Kitas reg. atskaitymas]]) -> 60
B5: 1002 | C5: Virginijus Daukša | D5: 40 | I5: =SUM(Darbuotojai[[#This Row],[Įpr. dirbtų valandų sk.]:[Ligos valandos]])*Darbuotojai[[#This Row],[Valandinis darbo užmokestis]]+Darbuotojai[[#This Row],[Viršvalandžių valandos]]*Darbuotojai[[#This Row],[Viršvalandžių koeficientas]] -> 320 | J5: =Darbuotojai[[#This Row],[Bendras užmokestis]]*Darbuotojai[[#This Row],[Iš viso išskaičiuota mokesčių]] + Darbuotojai[[#This Row],[Iš viso reg. atskaitymų]] -> 131.76 | L5: =Darbuotojai[[#This Row],[Bendras užmokestis]]-Darbuotojai[[#This Row],[Mokes. ir atskait.]]-Darbuotojai[[#This Row],[Kiti atskait.]] -> 188.24 | N5: 8 | O5: 1 | P5: 1 | Q5: 0.023 | R5: 0.28 | S5: 0.063 | T5: 0.0145 | U5: =SUM(Darbuotojai[[#This Row],[Valstybinis mokestis]:[Sveikatos apsaugos mokestis]]) -> 0.3805 | V5: 0 | W5: 10 | X5: =SUM(Darbuotojai[[#This Row],[Draudimo atskaitymas]:[Kitas reg. atskaitymas]]) -> 10
B6: 1003 | C6: Audra Jasaitytė | D6: 35 | E6: 3 | I6: =SUM(Darbuotojai[[#This Row],[Įpr. dirbtų valandų sk.]:[Ligos valandos]])*Darbuotojai[[#This Row],[Valandinis darbo užmokestis]]+Darbuotojai[[#This Row],[Viršvalandžių valandos]]*Darbuotojai[[#This Row],[Viršvalandžių koeficientas]] -> 532 | J6: =Darbuotojai[[#This Row],[Bendras užmokestis]]*Darbuotojai[[#This Row],[Iš viso išskaičiuota mokesčių]] + Darbuotojai[[#This Row],[Iš viso reg. atskaitymų]] -> 240.426 | L6: =Darbuotojai[[#This Row],[Bendras užmokestis]]-Darbuotojai[[#This Row],[Mokes. ir atskait.]]-Darbuotojai[[#This Row],[Kiti atskait.]] -> 291.574 | N6: 14 | O6: 1 | P6: 3 | Q6: 0.023 | R6: 0.28 | S6: 0.063 | T6: 0.0145 | U6: =SUM(Darbuotojai[[#This Row],[Valstybinis mokestis]:[Sveikatos apsaugos mokestis]]) -> 0.3805 | V6: 18 | W6: 20 | X6: =SUM(Darbuotojai[[#This Row],[Draudimo atskaitymas]:[Kitas reg. atskaitymas]]) -> 38
B7: 1008 | C7: Petras Stankevičius | D7: 50 | E7: 5 | F7: 1 | I7: =SUM(Darbuotojai[[#This Row],[Įpr. dirbtų valandų sk.]:[Ligos valandos]])*Darbuotojai[[#This Row],[Valandinis darbo užmokestis]]+Darbuotojai[[#This Row],[Viršvalandžių valandos]]*Darbuotojai[[#This Row],[Viršvalandžių koeficientas]] -> 1120 | J7: =Darbuotojai[[#This Row],[Bendras užmokestis]]*Darbuotojai[[#This Row],[Iš viso išskaičiuota mokesčių]] + Darbuotojai[[#This Row],[Iš viso reg. atskaitymų]] -> 441.16 | L7: =Darbuotojai[[#This Row],[Bendras užmokestis]]-Darbuotojai[[#This Row],[Mokes. ir atskait.]]-Darbuotojai[[#This Row],[Kiti atskait.]] -> 678.84 | N7: 20 | O7: 1 | P7: 0 | Q7: 0.023 | R7: 0.28 | S7: 0.063 | T7: 0.0145 | U7: =SUM(Darbuotojai[[#This Row],[Valstybinis mokestis]:[Sveikatos apsaugos mokestis]]) -> 0.3805 | V7: 15 | X7: =SUM(Darbuotojai[[#This Row],[Draudimo atskaitymas]:[Kitas reg. atskaitymas]]) -> 15
B8: 1011 | C8: Ligita Žukauskienė | D8: 40 | G8: 2 | H8: 15 | I8: =SUM(Darbuotojai[[#This Row],[Įpr. dirbtų valandų sk.]:[Ligos valandos]])*Darbuotojai[[#This Row],[Valandinis darbo užmokestis]]+Darbuotojai[[#This Row],[Viršvalandžių valandos]]*Darbuotojai[[#This Row],[Viršvalandžių koeficientas]] -> 430 | J8: =Darbuotojai[[#This Row],[Bendras užmokestis]]*Darbuotojai[[#This Row],[Iš viso išskaičiuota mokesčių]] + Darbuotojai[[#This Row],[Iš viso reg. atskaitymų]] -> 223.615 | L8: =Darbuotojai[[#This Row],[Bendras užmokestis]]-Darbuotojai[[#This Row],[Mokes. ir atskait.]]-Darbuotojai[[#This Row],[Kiti atskait.]] -> 206.385 | N8: 10 | O8: 1 | P8: 0 | Q8: 0.023 | R8: 0.28 | S8: 0.063 | T8: 0.0145 | U8: =SUM(Darbuotojai[[#This Row],[Valstybinis mokestis]:[Sveikatos apsaugos mokestis]]) -> 0.3805 | V8: 20 | W8: 40 | X8: =SUM(Darbuotojai[[#This Row],[Draudimo atskaitymas]:[Kitas reg. atskaitymas]]) -> 60
B9: 1012 | C9: Tomas Navickas | D9: 40 | E9: 5 | F9: 1 | I9: =SUM(Darbuotojai[[#This Row],[Įpr. dirbtų valandų sk.]:[Ligos valandos]])*Darbuotojai[[#This Row],[Valandinis darbo užmokestis]]+Darbuotojai[[#This Row],[Viršvalandžių valandos]]*Darbuotojai[[#This Row],[Viršvalandžių koeficientas]] -> 552 | J9: =Darbuotojai[[#This Row],[Bendras užmokestis]]*Darbuotojai[[#This Row],[Iš viso išskaičiuota mokesčių]] + Darbuotojai[[#This Row],[Iš viso reg. atskaitymų]] -> 270.036 | L9: =Darbuotojai[[#This Row],[Bendras užmokestis]]-Darbuotojai[[#This Row],[Mokes. ir atskait.]]-Darbuotojai[[#This Row],[Kiti atskait.]] -> 281.964 | N9: 12 | O9: 1 | P9: 4 | Q9: 0.023 | R9: 0.28 | S9: 0.063 | T9: 0.0145 | U9: =SUM(Darbuotojai[[#This Row],[Valstybinis mokestis]:[Sveikatos apsaugos mokestis]]) -> 0.3805 | V9: 20 | W9: 40 | X9: =SUM(Darbuotojai[[#This Row],[Draudimo atskaitymas]:[Kitas reg. atskaitymas]]) -> 60
B10: 1025 | C10: Jovita Juknaitė | D10: 36 | F10: 2 | G10: 1 | H10: 18 | I10: =SUM(Darbuotojai[[#This Row],[Įpr. dirbtų valandų sk.]:[Ligos valandos]])*Darbuotojai[[#This Row],[Valandinis darbo užmokestis]]+Darbuotojai[[#This Row],[Viršvalandžių valandos]]*Darbuotojai[[#This Row],[Viršvalandžių koeficientas]] -> 474 | J10: =Darbuotojai[[#This Row],[Bendras užmokestis]]*Darbuotojai[[#This Row],[Iš viso išskaičiuota mokesčių]] + Darbuotojai[[#This Row],[Iš viso reg. atskaitymų]] -> 225.357 | K10: 25 | L10: =Darbuotojai[[#This Row],[Bendras užmokestis]]-Darbuotojai[[#This Row],[Mokes. ir atskait.]]-Darbuotojai[[#This Row],[Kiti atskait.]] -> 223.643 | N10: 12 | O10: 1 | P10: 2 | Q10: 0.023 | R10: 0.28 | S10: 0.063 | T10: 0.0145 | U10: =SUM(Darbuotojai[[#This Row],[Valstybinis mokestis]:[Sveikatos apsaugos mokestis]]) -> 0.3805 | V10: 25 | W10: 20 | X10: =SUM(Darbuotojai[[#This Row],[Draudimo atskaitymas]:[Kitas reg. atskaitymas]]) -> 45
B11: 1032 | C11: Teresė Rakauskienė | D11: 40 | E11: 5 | F11: 1 | I11: =SUM(Darbuotojai[[#This Row],[Įpr. dirbtų valandų sk.]:[Ligos valandos]])*Darbuotojai[[#This Row],[Valandinis darbo užmokestis]]+Darbuotojai[[#This Row],[Viršvalandžių valandos]]*Darbuotojai[[#This Row],[Viršvalandžių koeficientas]] -> 460 | J11: =Darbuotojai[[#This Row],[Bendras užmokestis]]*Darbuotojai[[#This Row],[Iš viso išskaičiuota mokesčių]] + Darbuotojai[[#This Row],[Iš viso reg. atskaitymų]] -> 175.03 | K11: 50 | L11: =Darbuotojai[[#This Row],[Bendras užmokestis]]-Darbuotojai[[#This Row],[Mokes. ir atskait.]]-Darbuotojai[[#This Row],[Kiti atskait.]] -> 234.97 | N11: 10 | O11: 1 | P11: 3 | Q11: 0.023 | R11: 0.28 | S11: 0.063 | T11: 0.0145 | U11: =SUM(Darbuotojai[[#This Row],[Valstybinis mokestis]:[Sveikatos apsaugos mokestis]]) -> 0.3805 | X11: =SUM(Darbuotojai[[#This Row],[Draudimo atskaitymas]:[Kitas reg. atskaitymas]]) -> 0
B12: 1049 | C12: Jurgis Mikalauskas | D12: 40 | E12: 1 | I12: =SUM(Darbuotojai[[#This Row],[Įpr. dirbtų valandų sk.]:[Ligos valandos]])*Darbuotojai[[#This Row],[Valandinis darbo užmokestis]]+Darbuotojai[[#This Row],[Viršvalandžių valandos]]*Darbuotojai[[#This Row],[Viršvalandžių koeficientas]] -> 615 | J12: =Darbuotojai[[#This Row],[Bendras užmokestis]]*Darbuotojai[[#This Row],[Iš viso išskaičiuota mokesčių]] + Darbuotojai[[#This Row],[Iš viso reg. atskaitymų]] -> 259.0075 | K12: 23 | L12: =Darbuotojai[[#This Row],[Bendras užmokestis]]-Darbuotojai[[#This Row],[Mokes. ir atskait.]]-Darbuotojai[[#This Row],[Kiti atskait.]] -> 332.9925 | N12: 15 | O12: 1 | P12: 2 | Q12: 0.023 | R12: 0.28 | S12: 0.063 | T12: 0.0145 | U12: =SUM(Darbuotojai[[#This Row],[Valstybinis mokestis]:[Sveikatos apsaugos mokestis]]) -> 0.3805 | V12: 25 | X12: =SUM(Darbuotojai[[#This Row],[Draudimo atskaitymas]:[Kitas reg. atskaitymas]]) -> 25
B13: Bendrosios sumos | C13: =SUBTOTAL(103,Darbuotojai[Darbuotojo vardas]) -> 9 | D13: =SUBTOTAL(109,Darbuotojai[Įpr. dirbtų valandų sk.]) -> 371 | E13: =SUBTOTAL(109,Darbuotojai[Atostogų valandos]) -> 24 | F13: =SUBTOTAL(109,Darbuotojai[Ligos valandos]) -> 6 | G13: =SUBTOTAL(109,Darbuotojai[Viršvalandžių valandos]) -> 3 | I13: =SUBTOTAL(109,Darbuotojai[Bendras užmokestis]) -> 5063 | J13: =SUBTOTAL(109,Darbuotojai[Mokes. ir atskait.]) -> 2239.4715 | K13: =SUBTOTAL(109,Darbuotojai[Kiti atskait.]) -> 118 | L13: =SUBTOTAL(109,Darbuotojai[Galutinis užmokestis]) -> 2705.5285 | V13: =SUBTOTAL(109,Darbuotojai[Draudimo atskaitymas]) -> 143 | W13: =SUBTOTAL(109,Darbuotojai[Kitas reg. atskaitymas]) -> 170 | X13: =SUBTOTAL(109,Darbuotojai[Iš viso reg. atskaitymų]) -> 313

Sheet atlyginimų_lapelių_šablonas (hidden)
C2: =ĮmonėsPavadinimas -> „NUOTYKIAI VISIEMS“
C3: LAIKOTARPIS | D3: =LaikotarpioPabaiga -> 2013-04-08 | G3: VARDAS | H3: =IFERROR(INDEX(Darbuotojai[Darbuotojo vardas],Lapelis),"") -> Juozas Budrys | K3: DARBUOTOJO ID | L3: =IFERROR(INDEX(Darbuotojai[ID1],Lapelis),"") -> 1001
C4: Mokesčio būsena | E4: =IFERROR(INDEX(Darbuotojai[Mokesčio būsena],Lapelis),"") -> 1 | G4: Valstybinė priemoka (nuo W-4) | I4: =IFERROR(INDEX(Darbuotojai[Valstybinė priem.],Lapelis),"") -> 4 | K4: Dirbta valandų | M4: =IFERROR(INDEX(Darbuotojai[Įpr. dirbtų valandų sk.],Lapelis),"") -> 50
C5: Valandos įkainis | E5: =IFERROR(INDEX(Darbuotojai[Valandinis darbo užmokestis],Lapelis),"") -> 10 | G5: Viršvalandžių koeficientas | I5: =IFERROR(INDEX(Darbuotojai[Viršvalandžių koeficientas],Lapelis),"") -> 0 | K5: Ligos valandos | M5: =IFERROR(INDEX(Darbuotojai[Ligos valandos],Lapelis),"") -> 1
C6: Socialinio draudimo mokestis | E6: =IFERROR(INDEX(Darbuotojai[Soc. draudimo mokestis],Lapelis) * INDEX(Darbuotojai[Bendras užmokestis],Lapelis),"") -> 35.28 | G6: Valstybinis pajamų mokestis | I6: =IFERROR(INDEX(Darbuotojai[Valstybinis pajamų mokestis],Lapelis) * INDEX(Darbuotojai[Bendras užmokestis],Lapelis),"") -> 156.8 | K6: Atostogų valandos | M6: =IFERROR(INDEX(Darbuotojai[Atostogų valandos],Lapelis),"") -> 5
C7: Sveikatos apsaugos mokestis | E7: =IFERROR(INDEX(Darbuotojai[Sveikatos apsaugos mokestis],Lapelis) * INDEX(Darbuotojai[Bendras užmokestis],Lapelis),"") -> 8.12 | G7: Valstybinis mokestis | I7: =IFERROR(INDEX(Darbuotojai[Valstybinis mokestis],Lapelis) * INDEX(Darbuotojai[Bendras užmokestis],Lapelis),"") -> 12.88 | K7: Viršvalandžių valandos | M7: =IFERROR(INDEX(Darbuotojai[Viršvalandžių valandos],Lapelis),"") -> 0
C8: Draudimo atskaitymas | E8: =IFERROR(INDEX(Darbuotojai[Draudimo atskaitymas],Lapelis),"") -> 20 | G8: Kitas reguliarus atskaitymas | I8: =IFERROR(INDEX(Darbuotojai[Kitas reg. atskaitymas],Lapelis),"") -> 40 | K8: Bendras užmokestis | M8: =IFERROR(INDEX(Darbuotojai[Bendras užmokestis],Lapelis),"") -> 560
C9: Iš viso mokesčių ir | E9: =IFERROR(INDEX(Darbuotojai[Mokes. ir atskait.],Lapelis),"") -> 273.08 | G9: Kitas atskaitymas | I9: =IFERROR(INDEX(Darbuotojai[Kiti atskait.],Lapelis),"") -> 20 | K9: Iš viso mokesčių ir atskaitymų | M9: =IFERROR(INDEX(Darbuotojai[Mokes. ir atskait.],Lapelis) + INDEX(Darbuotojai[Kiti atskait.],Lapelis),"") -> 293.08
C10: reguliarių atskaitymų
K11: GALUTINIS UŽMOKESTIS | M11: =IFERROR(INDEX(Darbuotojai[Galutinis užmokestis],Lapelis),"") -> 266.92
C14: =ĮmonėsPavadinimas -> „NUOTYKIAI VISIEMS“
C15: LAIKOTARPIS | D15: =LaikotarpioPabaiga -> 2013-04-08 | G15: VARDAS | H15: =IFERROR(INDEX(Darbuotojai[Darbuotojo vardas],Lapelis),"") -> Virginijus Daukša | K15: DARBUOTOJO ID | L15: =IFERROR(INDEX(Darbuotojai[ID1],Lapelis),"") -> 1002
C16: Mokesčio būsena | E16: =IFERROR(INDEX(Darbuotojai[Mokesčio būsena],Lapelis),"") -> 1 | G16: Valstybinė priemoka (nuo W-4) | I16: =IFERROR(INDEX(Darbuotojai[Valstybinė priem.],Lapelis),"") -> 1 | K16: Dirbta valandų | M16: =IFERROR(INDEX(Darbuotojai[Įpr. dirbtų valandų sk.],Lapelis),"") -> 40
C17: Valandos įkainis | E17: =IFERROR(INDEX(Darbuotojai[Valandinis darbo užmokestis],Lapelis),"") -> 8 | G17: Viršvalandžių koeficientas | I17: =IFERROR(INDEX(Darbuotojai[Viršvalandžių koeficientas],Lapelis),"") -> 0 | K17: Ligos valandos | M17: =IFERROR(INDEX(Darbuotojai[Ligos valandos],Lapelis),"") -> 0
C18: Socialinio draudimo mokestis | E18: =IFERROR(INDEX(Darbuotojai[Soc. draudimo mokestis],Lapelis) * INDEX(Darbuotojai[Bendras užmokestis],Lapelis),"") -> 20.16 | G18: Valstybinis pajamų mokestis | I18: =IFERROR(INDEX(Darbuotojai[Valstybinis pajamų mokestis],Lapelis) * INDEX(Darbuotojai[Bendras užmokestis],Lapelis),"") -> 89.6 | K18: Atostogų valandos | M18: =IFERROR(INDEX(Darbuotojai[Atostogų valandos],Lapelis),"") -> 0
C19: Sveikatos apsaugos mokestis | E19: =IFERROR(INDEX(Darbuotojai[Sveikatos apsaugos mokestis],Lapelis) * INDEX(Darbuotojai[Bendras užmokestis],Lapelis),"") -> 4.64 | G19: Valstybinis mokestis | I19: =IFERROR(INDEX(Darbuotojai[Valstybinis mokestis],Lapelis) * INDEX(Darbuotojai[Bendras užmokestis],Lapelis),"") -> 7.36 | K19: Viršvalandžių valandos | M19: =IFERROR(INDEX(Darbuotojai[Viršvalandžių valandos],Lapelis),"") -> 0
C20: Draudimo atskaitymas | E20: =IFERROR(INDEX(Darbuotojai[Draudimo atskaitymas],Lapelis),"") -> 0 | G20: Kitas reguliarus atskaitymas | I20: =IFERROR(INDEX(Darbuotojai[Kitas reg. atskaitymas],Lapelis),"") -> 10 | K20: Bendras užmokestis | M20: =IFERROR(INDEX(Darbuotojai[Bendras užmokestis],Lapelis),"") -> 320
C21: Iš viso mokesčių ir | E21: =IFERROR(INDEX(Darbuotojai[Mokes. ir atskait.],Lapelis),"") -> 131.76 | G21: Kitas atskaitymas | I21: =IFERROR(INDEX(Darbuotojai[Kiti atskait.],Lapelis),"") -> 0 | K21: Iš viso mokesčių ir atskaitymų | M21: =IFERROR(INDEX(Darbuotojai[Mokes. ir atskait.],Lapelis) + INDEX(Darbuotojai[Kiti atskait.],Lapelis),"") -> 131.76
C22: reguliarių atskaitymų
K23: GALUTINIS UŽMOKESTIS | M23: =IFERROR(INDEX(Darbuotojai[Galutinis užmokestis],Lapelis),"") -> 188.24
C26: =ĮmonėsPavadinimas -> „NUOTYKIAI VISIEMS“
C27: LAIKOTARPIS | D27: =LaikotarpioPabaiga -> 2013-04-08 | G27: VARDAS | H27: =IFERROR(INDEX(Darbuotojai[Darbuotojo vardas],Lapelis),"") -> Audra Jasaitytė | K27: DARBUOTOJO ID | L27: =IFERROR(INDEX(Darbuotojai[ID1],Lapelis),"") -> 1003
C28: Mokesčio būsena | E28: =IFERROR(INDEX(Darbuotojai[Mokesčio būsena],Lapelis),"") -> 1 | G28: Valstybinė priemoka (nuo W-4) | I28: =IFERROR(INDEX(Darbuotojai[Valstybinė priem.],Lapelis),"") -> 3 | K28: Dirbta valandų | M28: =IFERROR(INDEX(Darbuotojai[Įpr. dirbtų valandų sk.],Lapelis),"") -> 35
C29: Valandos įkainis | E29: =IFERROR(INDEX(Darbuotojai[Valandinis darbo užmokestis],Lapelis),"") -> 14 | G29: Viršvalandžių koeficientas | I29: =IFERROR(INDEX(Darbuotojai[Viršvalandžių koeficientas],Lapelis),"") -> 0 | K29: Ligos valandos | M29: =IFERROR(INDEX(Darbuotojai[Ligos valandos],Lapelis),"") -> 0
C30: Socialinio draudimo mokestis | E30: =IFERROR(INDEX(Darbuotojai[Soc. draudimo mokestis],Lapelis) * INDEX(Darbuotojai[Bendras užmokestis],Lapelis),"") -> 33.516 | G30: Valstybinis pajamų mokestis | I30: =IFERROR(INDEX(Darbuotojai[Valstybinis pajamų mokestis],Lapelis) * INDEX(Darbuotojai[Bendras užmokestis],Lapelis),"") -> 148.96 | K30: Atostogų valandos | M30: =IFERROR(INDEX(Darbuotojai[Atostogų valandos],Lapelis),"") -> 3
C31: Sveikatos apsaugos mokestis | E31: =IFERROR(INDEX(Darbuotojai[Sveikatos apsaugos mokestis],Lapelis) * INDEX(Darbuotojai[Bendras užmokestis],Lapelis),"") -> 7.714 | G31: Valstybinis mokestis | I31: =IFERROR(INDEX(Darbuotojai[Valstybinis mokestis],Lapelis) * INDEX(Darbuotojai[Bendras užmokestis],Lapelis),"") -> 12.236 | K31: Viršvalandžių valandos | M31: =IFERROR(INDEX(Darbuotojai[Viršvalandžių valandos],Lapelis),"") -> 0
C32: Draudimo atskaitymas | E32: =IFERROR(INDEX(Darbuotojai[Draudimo atskaitymas],Lapelis),"") -> 18 | G32: Kitas reguliarus atskaitymas | I32: =IFERROR(INDEX(Darbuotojai[Kitas reg. atskaitymas],Lapelis),"") -> 20 | K32: Bendras užmokestis | M32: =IFERROR(INDEX(Darbuotojai[Bendras užmokestis],Lapelis),"") -> 532
C33: Iš viso mokesčių ir | E33: =IFERROR(INDEX(Darbuotojai[Mokes. ir atskait.],Lapelis),"") -> 240.426 | G33: Kitas atskaitymas | I33: =IFERROR(INDEX(Darbuotojai[Kiti atskait.],Lapelis),"") -> 0 | K33: Iš viso mokesčių ir atskaitymų | M33: =IFERROR(INDEX(Darbuotojai[Mokes. ir atskait.],Lapelis) + INDEX(Darbuotojai[Kiti atskait.],Lapelis),"") -> 240.426
C34: reguliarių atskaitymų
K35: GALUTINIS UŽMOKESTIS | M35: =IFERROR(INDEX(Darbuotojai[Galutinis užmokestis],Lapelis),"") -> 291.574
C38: =ĮmonėsPavadinimas -> „NUOTYKIAI VISIEMS“
C39: LAIKOTARPIS | D39: =LaikotarpioPabaiga -> 2013-04-08 | G39: VARDAS | H39: =IFERROR(INDEX(Darbuotojai[Darbuotojo vardas],Lapelis),"") -> Petras Stankevičius | K39: DARBUOTOJO ID | L39: =IFERROR(INDEX(Darbuotojai[ID1],Lapelis),"") -> 1008
C40: Mokesčio būsena | E40: =IFERROR(INDEX(Darbuotojai[Mokesčio būsena],Lapelis),"") -> 1 | G40: Valstybinė priemoka (nuo W-4) | I40: =IFERROR(INDEX(Darbuotojai[Valstybinė priem.],Lapelis),"") -> 0 | K40: Dirbta valandų | M40: =IFERROR(INDEX(Darbuotojai[Įpr. dirbtų valandų sk.],Lapelis),"") -> 50
C41: Valandos įkainis | E41: =IFERROR(INDEX(Darbuotojai[Valandinis darbo užmokestis],Lapelis),"") -> 20 | G41: Viršvalandžių koeficientas | I41: =IFERROR(INDEX(Darbuotojai[Viršvalandžių koeficientas],Lapelis),"") -> 0 | K41: Ligos valandos | M41: =IFERROR(INDEX(Darbuotojai[Ligos valandos],Lapelis),"") -> 1
C42: Socialinio draudimo mokestis | E42: =IFERROR(INDEX(Darbuotojai[Soc. draudimo mokestis],Lapelis) * INDEX(Darbuotojai[Bendras užmokestis],Lapelis),"") -> 70.56 | G42: Valstybinis pajamų mokestis | I42: =IFERROR(INDEX(Darbuotojai[Valstybinis pajamų mokestis],Lapelis) * INDEX(Darbuotojai[Bendras užmokestis],Lapelis),"") -> 313.6 | K42: Atostogų valandos | M42: =IFERROR(INDEX(Darbuotojai[Atostogų valandos],Lapelis),"") -> 5
C43: Sveikatos apsaugos mokestis | E43: =IFERROR(INDEX(Darbuotojai[Sveikatos apsaugos mokestis],Lapelis) * INDEX(Darbuotojai[Bendras užmokestis],Lapelis),"") -> 16.24 | G43: Valstybinis mokestis | I43: =IFERROR(INDEX(Darbuotojai[Valstybinis mokestis],Lapelis) * INDEX(Darbuotojai[Bendras užmokestis],Lapelis),"") -> 25.76 | K43: Viršvalandžių valandos | M43: =IFERROR(INDEX(Darbuotojai[Viršvalandžių valandos],Lapelis),"") -> 0
C44: Draudimo atskaitymas | E44: =IFERROR(INDEX(Darbuotojai[Draudimo atskaitymas],Lapelis),"") -> 15 | G44: Kitas reguliarus atskaitymas | I44: =IFERROR(INDEX(Darbuotojai[Kitas reg. atskaitymas],Lapelis),"") -> 0 | K44: Bendras užmokestis | M44: =IFERROR(INDEX(Darbuotojai[Bendras užmokestis],Lapelis),"") -> 1120
C45: Iš viso mokesčių ir | E45: =IFERROR(INDEX(Darbuotojai[Mokes. ir atskait.],Lapelis),"") -> 441.16 | G45: Kitas atskaitymas | I45: =IFERROR(INDEX(Darbuotojai[Kiti atskait.],Lapelis),"") -> 0 | K45: Iš viso mokesčių ir atskaitymų | M45: =IFERROR(INDEX(Darbuotojai[Mokes. ir atskait.],Lapelis) + INDEX(Darbuotojai[Kiti atskait.],Lapelis),"") -> 441.16
C46: reguliarių atskaitymų
K47: GALUTINIS UŽMOKESTIS | M47: =IFERROR(INDEX(Darbuotojai[Galutinis užmokestis],Lapelis),"") -> 678.84
